fUSD/lending_fUSD_20240902
["ID","MTS","AMOUNT","RATE_DAILY","PERIOD"]
[336927468,1725245436457,-565.45,0.00022441,2]
[336927469,1725245436466,-500.0,0.00022441,2]
[336927470,1725245436475,-500.0,0.00022441,2]
[336927471,1725245436484,-500.0,0.00022441,2]
[336927472,1725245436494,-500.0,0.00022441,2]
[336927473,1725245436503,-500.0,0.00022441,2]
[336927474,1725245436512,-500.0,0.00022441,2]
[336927475,1725245436521,-500.0,0.00022441,2]
[336927476,1725245436531,-500.0,0.00022441,2]
[336927477,1725245436540,-500.0,0.00022441,2]
[336927478,1725245436550,-500.0,0.00022441,2]
[336927479,1725245436559,-500.0,0.00022441,2]
[336927480,1725245436568,-500.0,0.00022441,2]
[336927481,1725245436577,-500.0,0.00022441,2]
[336927482,1725245436587,-500.0,0.00022441,2]
[336927483,1725245436596,-500.0,0.00022441,2]
[336927484,1725245436605,-500.0,0.00022441,2]
[336927485,1725245436614,-500.0,0.00022441,2]
[336927486,1725245436623,-500.0,0.00022441,2]
[336927487,1725245436633,-500.0,0.00022441,2]
[336927488,1725245436642,-500.0,0.00022441,2]
[336927489,1725245436658,-500.0,0.00022441,2]
[336927490,1725245436669,-500.0,0.00022441,2]
[336927491,1725245436678,-500.0,0.00022441,2]
[336927492,1725245436687,-500.0,0.00022441,2]
[336927493,1725245436696,-500.0,0.00022441,2]
[336927494,1725245436706,-500.0,0.00022441,2]
[336927495,1725245436715,-572.52963581,0.00022441,2]
[336927496,1725245436724,-301.65904008,0.00022441,2]
[336927497,1725245436735,-500.0,0.00022441,2]
[336927498,1725245436744,-500.0,0.00022441,2]
[336927499,1725245436753,-354.15227157,0.00022441,2]
[336927500,1725245436764,-500.0,0.00022441,2]
[336927501,1725245436774,-500.0,0.00022441,2]
[336927502,1725245436783,-500.0,0.00022441,2]
[336927503,1725245436794,-500.0,0.00022441,2]
[336927504,1725245436803,-500.0,0.00022441,2]
[336927505,1725245436814,-500.0,0.00022441,2]
[336927506,1725245436824,-500.0,0.00022441,2]
[336927507,1725245436834,-500.0,0.00022441,2]
[336927508,1725245436844,-500.0,0.00022441,2]
[336927509,1725245436854,-500.0,0.00022441,2]
[336927510,1725245436864,-500.0,0.00022441,2]
[336927511,1725245436886,-500.0,0.00022441,2]
[336927512,1725245436895,-1014.09,0.00022441,2]
[336927513,1725245436907,-500.0,0.00022441,2]
[336927514,1725245436917,-281.10957933,0.00022441,2]
[336927515,1725245436927,-500.0,0.00022441,2]
[336927516,1725245436936,-518.84,0.00022441,2]
[336927517,1725245436946,-500.0,0.00022441,2]
[336927518,1725245436956,-500.0,0.00022441,2]
[336927519,1725245436966,-500.0,0.00022441,2]
[336927520,1725245436975,-500.0,0.00022441,2]
[336927521,1725245436985,-500.0,0.00022441,2]
[336927522,1725245436994,-500.0,0.00022441,2]
[336927523,1725245437004,-500.0,0.00022441,2]
[336927524,1725245437013,-200.0,0.00022441,2]
[336927525,1725245437023,-1107.47,0.00022441,2]
[336927526,1725245437033,-500.0,0.00022441,2]
[336927527,1725245437042,-500.0,0.00022441,2]
[336927528,1725245437051,-500.0,0.00022441,2]
[336927529,1725245437060,-993.51,0.00022441,2]
[336927530,1725245437070,-500.0,0.00022441,2]
[336927531,1725245437079,-500.0,0.00022441,2]
[336927532,1725245437088,-624.83,0.00022441,2]
[336927533,1725245437097,-500.0,0.00022441,2]
[336927534,1725245437107,-500.0,0.00022441,2]
[336927535,1725245437116,-500.0,0.00022441,2]
[336927536,1725245437126,-500.0,0.00022441,2]
[336927537,1725245437135,-549.92,0.00022441,2]
[336927538,1725245437144,-500.0,0.00022441,2]
[336927539,1725245437154,-500.0,0.00022441,2]
[336927540,1725245437165,-616.75,0.00022441,2]
[336927541,1725245437174,-500.0,0.00022441,2]
[336927542,1725245437183,-500.0,0.00022441,2]
[336927543,1725245437192,-500.0,0.00022442,2]
[336927544,1725245437201,-500.0,0.00022442,2]
[336927545,1725245437211,-500.0,0.00022442,2]
[336927546,1725245437219,-1318.14,0.00022442,2]
[336927547,1725245437228,-728.03,0.00022442,2]
[336927548,1725245437237,-610.89,0.00022442,2]
[336927549,1725245437246,-500.0,0.00022442,2]
[336927550,1725245437255,-722.7,0.00022442,2]
[336927551,1725245437264,-1304.45,0.00022442,2]
[336927552,1725245437274,-842.05,0.00022442,2]
[336927553,1725245437283,-500.0,0.00022442,2]
[336927554,1725245437292,-628.16,0.00022442,2]
[336927555,1725245437301,-523.61,0.00022442,2]
[336927556,1725245437311,-812.42,0.00022442,2]
[336927557,1725245437320,-500.0,0.00022442,2]
[336927558,1725245437329,-500.0,0.00022442,2]
[336927559,1725245437339,-614.86,0.00022442,2]
[336927560,1725245437347,-652.8,0.00022442,2]
[336927561,1725245437356,-500.0,0.00022442,2]
[336927562,1725245437366,-500.0,0.00022442,2]
[336927563,1725245437375,-500.0,0.00022442,2]
[336927564,1725245437385,-1398.55,0.00022442,2]
[336927565,1725245437395,-861.75,0.00022442,2]
[336927566,1725245437405,-1527.05,0.00022442,2]
[336927567,1725245437415,-500.0,0.00022442,2]
[336927568,1725245437424,-520.44,0.00022442,2]
[336927569,1725245437433,-727.41,0.00022442,2]
[336927570,1725245437443,-500.0,0.00022442,2]
[336927571,1725245437452,-689.87,0.00022442,2]
[336927572,1725245437462,-687.46,0.00022442,2]
[336927573,1725245437471,-500.0,0.00022442,2]
[336927574,1725245437480,-1902.89,0.00022442,2]
[336927575,1725245437489,-500.0,0.00022442,2]
[336927576,1725245437499,-500.0,0.00022442,2]
[336927577,1725245437508,-500.0,0.00022442,2]
[336927578,1725245437517,-1830.67,0.00022442,2]
[336927579,1725245437526,-500.0,0.00022442,2]
[336927580,1725245437535,-1134.11,0.00022442,2]
[336927581,1725245437545,-1455.3,0.00022442,2]
[336927582,1725245437554,-1006.81,0.00022442,2]
[336927583,1725245437564,-500.0,0.00022442,2]
[336927584,1725245437573,-789.4,0.00022442,2]
[336927585,1725245437582,-1739.03,0.00022442,2]
[336927586,1725245437591,-500.0,0.00022442,2]
[336927587,1725245437601,-1456.73,0.00022442,2]
[336927588,1725245437611,-500.0,0.00022442,2]
[336927589,1725245437620,-500.0,0.00022442,2]
[336927590,1725245437629,-500.0,0.00022442,2]
[336927591,1725245437639,-1014.42,0.00022442,2]
[336927592,1725245437648,-1273.64,0.00022442,2]
[336927593,1725245437657,-1163.96,0.00022442,2]
[336927594,1725245437667,-885.82,0.00022442,2]
[336927595,1725245437676,-1487.28,0.00022442,2]
[336927596,1725245437685,-361.55,0.00022442,2]
[336927597,1725245437695,-1277.11,0.00022442,2]
[336927598,1725245437704,-500.0,0.00022442,2]
[336927599,1725245437713,-500.0,0.00022442,2]
[336927600,1725245437723,-1559.21,0.00022442,2]
[336927601,1725245437733,-500.0,0.00022442,2]
[336927602,1725245437742,-500.0,0.00022442,2]
[336927603,1725245437752,-811.95,0.00022442,2]
[336927604,1725245437761,-609.43,0.00022442,2]
[336927605,1725245437771,-242.80769384,0.00022442,2]
[336927606,1725245437781,-805.77,0.00022442,2]
[336927607,1725245437790,-556.17,0.00022442,2]
[336927608,1725245437800,-500.0,0.00022442,2]
[336927609,1725245437809,-500.0,0.00022442,2]
[336927610,1725245437818,-500.0,0.00022442,2]
[336927611,1725245437827,-155.60252847,0.00022442,2]
[336927612,1725245437836,-926.44,0.00022442,2]
[336927613,1725245437846,-500.0,0.00022442,2]
[336927614,1725245437855,-500.0,0.00022442,2]
[336927615,1725245437865,-500.0,0.00022442,2]
[336927616,1725245437879,-503.86,0.00022442,2]
[336927617,1725245437889,-500.0,0.00022442,2]
[336927618,1725245437898,-521.81,0.00022442,2]
[336927619,1725245437908,-500.0,0.00022442,2]
[336927620,1725245437918,-500.0,0.00022442,2]
[336927621,1725245437928,-2285.94,0.00022442,2]
[336927622,1725245437938,-500.0,0.00022442,2]
[336927623,1725245437947,-500.0,0.00022442,2]
[336927624,1725245437958,-674.36,0.00022442,2]
[336927625,1725245437969,-663.01,0.00022442,2]
[336927626,1725245437978,-500.0,0.00022442,2]
[336927627,1725245437988,-604.84,0.00022442,2]
[336927628,1725245437998,-500.0,0.00022442,2]
[336927629,1725245438007,-500.0,0.00022442,2]
[336927630,1725245438017,-500.0,0.00022442,2]
[336927631,1725245438027,-500.0,0.00022442,2]
[336927632,1725245438036,-500.0,0.00022442,2]
[336927633,1725245438046,-500.0,0.00022442,2]
[336927634,1725245438055,-500.0,0.00022442,2]
[336927635,1725245438065,-500.0,0.00022442,2]
[336927636,1725245438075,-500.0,0.00022442,2]
[336927637,1725245438084,-500.0,0.00022442,2]
[336927638,1725245438094,-568.98,0.00022442,2]
[336927639,1725245438103,-209.32745405,0.00022442,2]
[336927640,1725245438112,-1015.64,0.00022442,2]
[336927641,1725245438122,-565.45,0.00022442,2]
[336927642,1725245438131,-1161.46,0.00022442,2]
[336927643,1725245438141,-500.0,0.00022442,2]
[336927644,1725245438151,-500.0,0.00022442,2]
[336927645,1725245438162,-500.0,0.00022442,2]
[336927646,1725245438171,-500.0,0.00022442,2]
[336927647,1725245438180,-500.0,0.00022442,2]
[336927648,1725245438189,-500.0,0.00022442,2]
[336927649,1725245438199,-999.0,0.00022442,2]
[336927650,1725245438208,-500.0,0.00022442,2]
[336927651,1725245438217,-805.14,0.00022442,2]
[336927652,1725245438226,-265.067256,0.00022442,2]
[336927653,1725245438235,-500.0,0.00022442,2]
[336927654,1725245438244,-500.0,0.00022442,2]
[336927655,1725245438253,-594.25,0.00022442,2]
[336927656,1725245438263,-500.0,0.00022442,2]
[336927657,1725245438272,-500.0,0.00022442,2]
[336927658,1725245438281,-500.0,0.00022442,2]
[336927659,1725245438291,-500.0,0.00022442,2]
[336927660,1725245438300,-589.11,0.00022442,2]
[336927661,1725245438309,-500.0,0.00022442,2]
[336927662,1725245438318,-500.0,0.00022442,2]
[336927663,1725245438328,-621.87809559,0.00022442,2]
[336927664,1725245438338,-500.0,0.00022442,2]
[336927665,1725245438348,-500.0,0.00022442,2]
[336927666,1725245438358,-295.55309149,0.00022442,2]
[336927667,1725245438368,-500.0,0.00022442,2]
[336927668,1725245438378,-693.92,0.00022442,2]
[336927669,1725245438388,-500.0,0.00022442,2]
[336927670,1725245438398,-500.0,0.00022442,2]
[336927671,1725245438407,-500.0,0.00022442,2]
[336927672,1725245438416,-500.0,0.00022442,2]
[336927673,1725245438425,-500.0,0.00022442,2]
[336927674,1725245438435,-500.0,0.00022442,2]
[336927676,1725245438444,-500.0,0.00022442,2]
[336927677,1725245438453,-500.0,0.00022442,2]
[336927678,1725245438467,-500.0,0.00022442,2]
[336927679,1725245438476,-601.39,0.00022442,2]
[336927680,1725245438486,-500.0,0.00022442,2]
[336927682,1725245438495,-500.0,0.00022442,2]
[336927683,1725245438504,-500.0,0.00022442,2]
[336927684,1725245438513,-728.54,0.00022442,2]
[336927685,1725245438522,-500.04988813,0.00022442,2]
[336927686,1725245438531,-522.11,0.00022442,2]
[336927687,1725245438541,-500.0,0.00022442,2]
[336927688,1725245438550,-500.0,0.00022442,2]
[336927689,1725245438560,-500.0,0.00022442,2]
[336927690,1725245438571,-500.0,0.00022442,2]
[336927691,1725245438580,-500.0,0.00022442,2]
[336927692,1725245438589,-5450.53,0.00022442,2]
[336927693,1725245438599,-500.0,0.00022442,2]
[336927694,1725245438608,-500.0,0.00022442,2]
[336927695,1725245438617,-500.0,0.00022442,2]
[336927696,1725245438627,-500.0,0.00022442,2]
[336927697,1725245438635,-500.0,0.00022442,2]
[336927698,1725245438645,-500.0,0.00022442,2]
[336927699,1725245438655,-1014.09,0.00022442,2]
[336927700,1725245438664,-500.0,0.00022442,2]
[336927701,1725245438675,-500.0,0.00022442,2]
[336927702,1725245438683,-518.84,0.00022442,2]
[336927703,1725245438692,-500.0,0.00022442,2]
[336927704,1725245438701,-657.06,0.00022442,2]
[336927705,1725245438711,-500.0,0.00022442,2]
[336927706,1725245438720,-500.0,0.00022442,2]
[336927707,1725245438729,-500.0,0.00022442,2]
[336927708,1725245438738,-500.0,0.00022442,2]
[336927709,1725245438747,-1099.38,0.00022442,2]
[336927710,1725245438756,-500.0,0.00022442,2]
[336927711,1725245438765,-500.0,0.00022442,2]
[336927712,1725245438775,-200.0,0.00022442,2]
[336927713,1725245438784,-1107.47,0.00022442,2]
[336927714,1725245438793,-500.0,0.00022442,2]
[336927715,1725245438802,-500.0,0.00022442,2]
[336927716,1725245438811,-500.0,0.00022442,2]
[336927717,1725245438820,-500.0,0.00022442,2]
[336927718,1725245438829,-500.0,0.00022442,2]
[336927719,1725245438839,-993.51,0.00022442,2]
[336927720,1725245438848,-500.0,0.00022442,2]
[336927721,1725245438858,-500.0,0.00022442,2]
[336927722,1725245438868,-624.83,0.00022442,2]
[336927723,1725245438882,-525.71,0.00022442,2]
[336927724,1725245438892,-500.0,0.00022442,2]
[336927725,1725245438902,-1488.2,0.00022442,2]
[336927726,1725245438912,-500.0,0.00022442,2]
[336927727,1725245438922,-500.0,0.00022442,2]
[336927728,1725245438931,-500.0,0.00022442,2]
[336927729,1725245438941,-500.0,0.00022442,2]
[336927730,1725245438952,-500.0,0.00022442,2]
[336927731,1725245438962,-549.92,0.00022442,2]
[336927732,1725245438971,-1109.45,0.00022442,2]
[336927733,1725245438980,-500.0,0.00022442,2]
[336927734,1725245438989,-958.04,0.00022442,2]
[336927735,1725245438999,-500.0,0.00022442,2]
[336927736,1725245439009,-500.0,0.00022442,2]
[336927738,1725245439018,-616.6032806,0.00022442,2]
[336927740,1725245439027,-616.75,0.00022442,2]
[336927742,1725245439036,-500.0,0.00022442,2]
[336927743,1725245439045,-500.0,0.00022442,2]
[336927745,1725245439054,-500.0,0.00022442,2]
[336927747,1725245439063,-500.0,0.00022442,2]
[336927749,1725245439072,-500.0,0.00022442,2]
[336927750,1725245439081,-500.0,0.00022442,2]
[336927751,1725245439090,-500.0,0.00022442,2]
[336927752,1725245439100,-500.0,0.00022443,2]
[336927753,1725245439110,-500.0,0.00022443,2]
[336927754,1725245439120,-500.0,0.00022443,2]
[336927755,1725245439129,-472.79083746,0.00022443,2]
[336927756,1725245439138,-201.06625136,0.00022443,2]
[336927757,1725245439148,-240.586147,0.00022443,2]
[336927758,1725245439158,-525.24,0.00022443,2]
[336927759,1725245439167,-623.02,0.00022443,2]
[336927760,1725245439176,-734.94,0.00022443,2]
[336927761,1725245439185,-500.0,0.00022443,2]
[336927762,1725245439194,-843.89,0.00022443,2]
[336927763,1725245439203,-500.0,0.00022443,2]
[336927764,1725245439212,-508.23,0.00022443,2]
[336927765,1725245439221,-500.0,0.00022443,2]
[336927766,1725245439230,-500.0,0.00022443,2]
[336927767,1725245439239,-500.0,0.00022443,2]
[336927768,1725245439249,-500.0,0.00022443,2]
[336927769,1725245439258,-500.0,0.00022443,2]
[336927770,1725245439267,-500.0,0.00022443,2]
[336927771,1725245439276,-500.0,0.00022443,2]
[336927772,1725245439285,-521.36,0.00022443,2]
[336927773,1725245439294,-500.0,0.00022443,2]
[336927775,1725245439303,-500.0,0.00022443,2]
[336927777,1725245439313,-752.31,0.00022443,2]
[336927779,1725245439322,-845.67,0.00022443,2]
[336927780,1725245439331,-500.0,0.00022443,2]
[336927782,1725245439340,-500.0,0.00022443,2]
[336927784,1725245439349,-500.0,0.00022443,2]
[336927786,1725245439358,-500.0,0.00022443,2]
[336927788,1725245439367,-500.0,0.00022443,2]
[336927790,1725245439377,-500.0,0.00022443,2]
[336927792,1725245439386,-500.0,0.00022443,2]
[336927794,1725245439395,-500.0,0.00022443,2]
[336927796,1725245439407,-500.0,0.00022443,2]
[336927820,1725245439623,-500.0,0.00022443,2]
[336927822,1725245439634,-500.0,0.00022443,2]
[336927824,1725245439644,-500.0,0.00022443,2]
[336927826,1725245439656,-500.0,0.00022443,2]
[336927828,1725245439666,-526.29,0.00022443,2]
[336927830,1725245439675,-768.07,0.00022443,2]
[336927832,1725245439684,-500.0,0.00022443,2]
[336927834,1725245439693,-500.0,0.00022443,2]
[336927836,1725245439702,-679.15,0.00022443,2]
[336927838,1725245439711,-571.94,0.00022443,2]
[336927840,1725245439720,-899.7,0.00022443,2]
[336927842,1725245439731,-500.0,0.00022443,2]
[336927844,1725245439740,-542.86,0.00022443,2]
[336927846,1725245439749,-500.0,0.00022443,2]
[336927848,1725245439761,-500.0,0.00022443,2]
[336927850,1725245439771,-564.12,0.00022443,2]
[336927852,1725245439783,-500.0,0.00022443,2]
[336927854,1725245439793,-500.0,0.00022443,2]
[336927856,1725245439803,-996.71,0.00022443,2]
[336927858,1725245439813,-500.0,0.00022443,2]
[336927860,1725245439822,-500.0,0.00022443,2]
[336927862,1725245439832,-475.16646691,0.00022443,2]
[336927864,1725245439842,-500.0,0.00022443,2]
[336927866,1725245439853,-766.87,0.00022443,2]
[336927868,1725245439863,-577.51,0.00022443,2]
[336927870,1725245439875,-500.0,0.00022443,2]
[336927872,1725245439885,-636.98,0.00022443,2]
[336927874,1725245439896,-500.0,0.00022443,2]
[336927876,1725245439907,-500.0,0.00022443,2]
[336927878,1725245439918,-500.0,0.00022443,2]
[336927880,1725245439927,-500.0,0.00022443,2]
[336927882,1725245439937,-500.0,0.00022443,2]
[336927884,1725245439946,-500.0,0.00022443,2]
[336927886,1725245439958,-1043.04,0.00022443,2]
[336927887,1725245439967,-500.0,0.00022443,2]
[336927889,1725245439978,-500.0,0.00022443,2]
[336927891,1725245439988,-500.0,0.00022443,2]
[336927893,1725245439998,-500.0,0.00022443,2]
[336927895,1725245440009,-500.0,0.00022443,2]
[336927897,1725245440021,-1099.94,0.00022443,2]
[336927899,1725245440030,-526.30674119,0.00022443,2]
[336927901,1725245440040,-500.0,0.00022443,2]
[336927903,1725245440050,-1051.7,0.00022443,2]
[336927905,1725245440060,-589.72,0.00022443,2]
[336927907,1725245440070,-500.0,0.00022443,2]
[336927909,1725245440080,-500.0,0.00022443,2]
[336927911,1725245440090,-1122.06,0.00022443,2]
[336927913,1725245440099,-955.93,0.00022443,2]
[336927914,1725245440109,-167.68632035,0.00022443,2]
[336927916,1725245440118,-1074.37,0.00022443,2]
[336927919,1725245440130,-500.0,0.00022443,2]
[336927920,1725245440140,-500.0,0.00022443,2]
[336927922,1725245440150,-500.0,0.00022443,2]
[336927924,1725245440160,-1040.39,0.00022443,2]
[336927926,1725245440171,-1797.96,0.00022443,2]
[336927929,1725245440182,-500.0,0.00022443,2]
[336927931,1725245440194,-2101.96,0.00022443,2]
[336927934,1725245440203,-563.78,0.00022443,2]
[336927936,1725245440215,-1275.86,0.00022443,2]
[336927938,1725245440226,-500.0,0.00022443,2]
[336927940,1725245440236,-500.0,0.00022443,2]
[336927942,1725245440246,-500.0,0.00022443,2]
[336927945,1725245440257,-500.0,0.00022443,2]
[336927947,1725245440268,-500.0,0.00022443,2]
[336927949,1725245440278,-500.0,0.00022443,2]
[336927951,1725245440287,-500.0,0.00022443,2]
[336927953,1725245440297,-500.0,0.00022443,2]
[336927955,1725245440306,-500.0,0.00022443,2]
[336927957,1725245440316,-982.98,0.00022443,2]
[336927959,1725245440326,-1318.14,0.00022443,2]
[336927961,1725245440335,-1318.14,0.00022443,2]
[336927962,1725245440344,-1297.1,0.00022443,2]
[336927964,1725245440354,-931.52,0.00022443,2]
[336927966,1725245440364,-728.03,0.00022443,2]
[336927968,1725245440373,-1585.62,0.00022443,2]
[336927970,1725245440383,-728.03,0.00022443,2]
[336927972,1725245440393,-500.0,0.00022443,2]
[336927974,1725245440404,-610.89,0.00022443,2]
[336927976,1725245440414,-610.89,0.00022443,2]
[336927978,1725245440423,-1236.45,0.00022443,2]
[336927980,1725245440433,-754.49,0.00022443,2]
[336927982,1725245440443,-565.12118809,0.00022443,2]
[336927984,1725245440452,-451.58494308,0.00022443,2]
[336927989,1725245440482,-48.41505692,0.00022443,2]
[336927991,1725245440492,-500.0,0.00022443,2]
[336927993,1725245440502,-500.0,0.00022443,2]
[336927995,1725245440512,-1668.83,0.00022443,2]
[336927997,1725245440522,-660.21,0.00022443,2]
[336927999,1725245440532,-722.7,0.00022443,2]
[336928000,1725245440542,-722.7,0.00022443,2]
[336928002,1725245440553,-500.0,0.00022443,2]
[336928004,1725245440562,-1304.45,0.00022443,2]
[336928006,1725245440573,-1304.45,0.00022443,2]
[336928009,1725245440583,-500.0,0.00022443,2]
[336928011,1725245440595,-500.0,0.00022443,2]
[336928013,1725245440605,-500.0,0.00022443,2]
[336928015,1725245440615,-842.05,0.00022443,2]
[336928017,1725245440625,-842.05,0.00022443,2]
[336928019,1725245440635,-500.0,0.00022443,2]
[336928021,1725245440645,-588.6,0.00022443,2]
[336928023,1725245440656,-730.55,0.00022443,2]
[336928025,1725245440666,-910.13,0.00022443,2]
[336928027,1725245440676,-507.44,0.00022443,2]
[336928029,1725245440686,-500.0,0.00022443,2]
[336928031,1725245440698,-628.16,0.00022443,2]
[336928033,1725245440709,-500.0,0.00022443,2]
[336928035,1725245440719,-628.16,0.00022443,2]
[336928037,1725245440730,-889.98,0.00022443,2]
[336928039,1725245440740,-523.61,0.00022443,2]
[336928041,1725245440750,-523.61,0.00022443,2]
[336928043,1725245440760,-209.98874302,0.00022443,2]
[336928045,1725245440770,-812.42,0.00022443,2]
[336928047,1725245440778,-812.42,0.00022443,2]
[336928049,1725245440788,-641.0,0.00022443,2]
[336928051,1725245440798,-501.36864047,0.00022443,2]
[336928053,1725245440807,-500.0,0.00022443,2]
[336928055,1725245440816,-1195.29,0.00022443,2]
[336928057,1725245440825,-1038.91,0.00022443,2]
[336928058,1725245440834,-500.0,0.00022443,2]
[336928060,1725245440844,-624.75,0.00022443,2]
[336928062,1725245440854,-614.86,0.00022443,2]
[336928064,1725245440867,-614.86,0.00022443,2]
[336928067,1725245440881,-500.0,0.00022443,2]
[336928069,1725245440891,-500.0,0.00022443,2]
[336928071,1725245440902,-1743.27,0.00022443,2]
[336928072,1725245440911,-500.0,0.00022443,2]
[336928074,1725245440921,-689.01,0.00022443,2]
[336928077,1725245440931,-500.0,0.00022443,2]
[336928078,1725245440940,-500.0,0.00022443,2]
[336928080,1725245440950,-652.8,0.00022443,2]
[336928082,1725245440960,-652.8,0.00022443,2]
[336928084,1725245440970,-309.85264807,0.00022443,2]
[336928086,1725245440979,-500.0,0.00022443,2]
[336928088,1725245440989,-1584.24,0.00022443,2]
[336928090,1725245440998,-500.0,0.00022443,2]
[336928092,1725245441008,-963.3,0.00022443,2]
[336928094,1725245441017,-500.0,0.00022443,2]
[336928096,1725245441027,-500.0,0.00022443,2]
[336928098,1725245441036,-500.0,0.00022443,2]
[336928100,1725245441046,-500.0,0.00022443,2]
[336928102,1725245441056,-1433.15,0.00022443,2]
[336928104,1725245441065,-500.0,0.00022443,2]
[336928106,1725245441075,-1398.55,0.00022443,2]
[336928108,1725245441084,-1398.55,0.00022443,2]
[336928110,1725245441094,-665.03,0.00022443,2]
[336928112,1725245441104,-500.0,0.00022443,2]
[336928114,1725245441113,-861.75,0.00022443,2]
[336928116,1725245441123,-861.75,0.00022443,2]
[336928118,1725245441133,-871.04,0.00022443,2]
[336928120,1725245441142,-1527.05,0.00022443,2]
[336928122,1725245441152,-1527.05,0.00022443,2]
[336928124,1725245441162,-500.0,0.00022443,2]
[336928126,1725245441171,-500.0,0.00022443,2]
[336928128,1725245441181,-500.0,0.00022443,2]
[336928130,1725245441190,-1273.65,0.00022443,2]
[336928132,1725245441200,-520.44,0.00022443,2]
[336928134,1725245441209,-520.44,0.00022443,2]
[336928136,1725245441218,-727.41,0.00022443,2]
[336928138,1725245441228,-555.53,0.00022443,2]
[336928140,1725245441237,-727.41,0.00022443,2]
[336928141,1725245441246,-1736.86,0.00022443,2]
[336928143,1725245441255,-500.0,0.00022443,2]
[336928145,1725245441265,-500.0,0.00022443,2]
[336928147,1725245441274,-500.0,0.00022443,2]
[336928149,1725245441283,-500.0,0.00022443,2]
[336928151,1725245441293,-500.0,0.00022443,2]
[336928153,1725245441302,-689.87,0.00022443,2]
[336928155,1725245441312,-689.87,0.00022443,2]
[336928157,1725245441321,-687.46,0.00022443,2]
[336928159,1725245441331,-687.46,0.00022443,2]
[336928161,1725245441340,-500.0,0.00022443,2]
[336928163,1725245441350,-500.0,0.00022443,2]
[336928165,1725245441360,-541.43220652,0.00022443,2]
[336928167,1725245441369,-1403.39,0.00022443,2]
[336928169,1725245441379,-1902.89,0.00022443,2]
[336928171,1725245441390,-1902.89,0.00022443,2]
[336928173,1725245441399,-500.0,0.00022443,2]
[336928175,1725245441408,-500.0,0.00022443,2]
[336928177,1725245441418,-500.0,0.00022443,2]
[336928179,1725245441427,-500.0,0.00022443,2]
[336928181,1725245441437,-1361.2,0.00022443,2]
[336928183,1725245441446,-500.0,0.00022443,2]
[336928184,1725245441456,-500.0,0.00022443,2]
[336928186,1725245441467,-500.0,0.00022443,2]
[336928188,1725245441477,-500.0,0.00022443,2]
[336928190,1725245441486,-1360.23,0.00022443,2]
[336928192,1725245441496,-500.0,0.00022443,2]
[336928194,1725245441506,-500.0,0.00022443,2]
[336928196,1725245441515,-500.0,0.00022443,2]
[336928198,1725245441524,-1830.67,0.00022443,2]